bitfinex/quotes_BTCUSD_20230114
["timestamp","ask_amount","ask_price","bid_price","bid_amount"]
[1673699668193,0.19072595,20922.0,20914.0,0.74266348]
[1673699668451,0.20345795,20921.0,20914.0,0.32225879]
[1673699668704,0.19072595,20920.0,20913.0,0.3308818]
[1673699668966,0.47807,20918.0,20909.0,0.00012]
[1673699669262,0.19072595,20917.0,20909.0,0.00012]
[1673699669504,0.19072595,20917.0,20909.0,6e-05]
[1673699669505,0.956268,20915.0,20909.0,6e-05]
[1673699669745,0.956268,20915.0,20907.0,0.32976873]
[1673699669746,0.20345795,20914.0,20907.0,0.32976873]
[1673699670005,0.956392,20912.0,20907.0,0.32976873]
[1673699670243,0.20345795,20911.0,20907.0,0.32976873]
[1673699670492,1.14617064,20910.0,20898.0,0.97977773]
[1673699670727,1.1507295,20909.0,20898.0,0.03060987]
[1673699670973,0.478324,20907.0,20900.0,0.23456054]
[1673699671219,0.20345795,20906.0,20900.0,0.16452548]
[1673699671499,0.19072595,20905.0,20898.0,0.03060987]
[1673699671738,0.41446197,20909.0,20898.0,0.03060987]
[1673699671739,0.19072595,20904.0,20900.0,0.26036682]
[1673699671987,0.41446197,20909.0,20899.0,0.27067442]
[1673699671988,0.20345795,20903.0,20899.0,0.27067442]
[1673699672234,0.19072595,20902.0,20898.0,0.31074937]
[1673699672476,0.1,20905.0,20898.0,0.31074937]
[1673699672477,0.19072595,20901.0,20898.0,0.31074937]
[1673699672719,0.51404417,20905.0,20898.0,0.03060987]
[1673699672720,0.19072595,20900.0,20898.0,0.03060987]
[1673699672991,0.478392,20904.0,20898.0,0.03060987]
[1673699672992,0.29072595,20899.0,20898.0,0.03060987]
[1673699673232,0.29072595,20899.0,20896.0,1.75365801]
[1673699673476,0.01206677,20898.0,20896.0,1.75365801]
[1673699674496,0.01129082,20901.0,20897.0,0.32028786]
[1673699674741,0.478384,20904.0,20898.0,0.16952549]
[1673699674742,0.01132804,20902.0,20898.0,0.16952549]
[1673699674987,0.01327564,20900.0,20898.0,0.16952549]
[1673699675242,0.01327564,20900.0,20896.0,1.75365801]
[1673699675243,0.01433489,20899.0,20896.0,1.75365801]
[1673699675489,0.01329751,20898.0,20896.0,1.75365801]
[1673699675739,0.478435,20902.0,20896.0,1.75365801]
[1673699675981,0.478435,20902.0,20897.0,0.16952549]
[1673699675982,0.47848,20900.0,20897.0,0.16952549]
[1673699676234,0.012732,20899.0,20896.0,1.75365801]
[1673699676474,0.47848,20900.0,20896.0,1.75365801]
[1673699676712,1.52452775,20901.0,20897.0,0.27471934]
[1673699676713,0.59337836,20901.0,20897.0,0.27471934]
[1673699676957,0.59337836,20901.0,20897.0,0.44424483]
[1673699677202,0.49337836,20901.0,20897.0,0.44424483]
[1673699677447,0.49337836,20901.0,20897.0,0.54424483]
[1673699677730,0.49238775,20902.0,20897.0,0.57582255]
[1673699677967,0.01253168,20901.0,20897.0,0.47588255]
[1673699678222,0.66917895,20901.0,20897.0,6e-05]
[1673699678461,0.01246511,20900.0,20897.0,0.25365193]
[1673699678704,0.01246511,20900.0,20897.0,0.25371193]
[1673699679473,0.20319106,20900.0,20897.0,0.00012]
[1673699679756,1.03207,20898.0,20897.0,6e-05]
[1673699679994,1.03207,20898.0,20891.0,0.00246052]
[1673699679995,1.49653969,20898.0,20891.0,0.00246052]
[1673699680239,0.20345795,20897.0,20891.0,0.00246052]
[1673699680499,1.16061395,20896.0,20891.0,0.00246052]
[1673699680757,0.68065964,20895.0,20890.0,0.00246052]
[1673699681003,0.76792764,20894.0,20889.0,1.43561753]
[1673699681261,2.10382664,20893.0,20889.0,1.43561753]
[1673699681509,0.20345795,20892.0,20889.0,1.43561753]
[1673699681747,1.436025,20891.0,20889.0,1.43561753]
[1673699682002,0.075042,20890.0,20889.0,1.43561753]
[1673699682256,0.075042,20890.0,20886.0,2.46547666]
[1673699682257,0.26576795,20890.0,20886.0,2.46547666]
[1673699682494,1.63963295,20889.0,20886.0,2.16773256]
[1673699682750,0.66792764,20888.0,20882.0,1.98406409]
[1673699682989,1.436403,20886.0,20881.0,0.23700386]
[1673699683246,0.20345795,20885.0,20881.0,0.23700386]
[1673699683501,0.20345795,20885.0,20877.0,0.00785782]
[1673699683502,0.19072595,20885.0,20882.0,0.2389857]
[1673699683754,0.478823,20885.0,20882.0,0.23881647]
[1673699683995,0.4788,20886.0,20882.0,0.23881647]
[1673699684241,0.111892,20885.0,20878.0,0.27451007]
[1673699684495,0.19072595,20884.0,20878.0,0.16952549]
[1673699684740,0.19072595,20883.0,20877.0,0.478988]
[1673699685004,0.19072595,20882.0,20879.0,0.321165]
[1673699685256,0.03284,20893.0,20879.0,0.321165]
[1673699685257,0.19349827,20889.0,20884.0,0.31810915]
[1673699685511,0.19349827,20889.0,20885.0,0.49058449]
[1673699685751,0.23157324,20888.0,20886.0,0.37264349]
[1673699685995,0.18138345,20887.0,20886.0,0.16952549]
[1673699686237,0.18121931,20890.0,20886.0,0.16952549]
[1673699686490,0.578584,20895.0,20887.0,0.96945149]
[1673699686738,0.578584,20895.0,20888.0,0.37248249]
[1673699686739,0.17770552,20891.0,20888.0,0.37248249]
[1673699686981,0.17770552,20891.0,20889.0,0.321131]
[1673699687222,0.17770552,20891.0,20887.0,0.29623197]
[1673699687223,0.95782723,20888.0,20887.0,0.29623197]
[1673699687705,1.14855318,20888.0,20887.0,0.321165]
[1673699687957,2.10449787,20888.0,20884.0,0.31810915]
[1673699688196,0.20259595,20887.0,20884.0,0.31810915]
[1673699688439,0.66950295,20887.0,20884.0,0.31810915]
[1673699688685,0.01187,20886.0,20884.0,0.31810915]
[1673699688946,0.478812,20885.0,20884.0,0.31810915]
[1673699689182,0.68140795,20885.0,20884.0,0.31810915]
[1673699689425,0.490682,20885.0,20884.0,0.31810915]
[1673699690674,0.6505584,20885.0,20884.0,0.31810915]
[1673699691182,0.95782723,20888.0,20884.0,0.48763464]
[1673699691183,0.478778,20887.0,20884.0,0.48763464]
[1673699691423,0.6389622,20887.0,20884.0,0.73385298]
[1673699691677,1.43658523,20888.0,20885.0,0.26952549]
[1673699691678,0.95782723,20888.0,20885.0,0.26952549]
[1673699691915,0.95782723,20888.0,20886.0,0.321165]
[1673699692143,0.95782723,20888.0,20886.0,0.28955869]
[1673699693376,0.95782723,20888.0,20885.0,0.47881]
[1673699693608,0.95782723,20888.0,20886.0,0.321165]
[1673699693855,0.95782723,20888.0,20887.0,0.202986]
[1673699694109,0.95782723,20888.0,20886.0,0.24720545]
[1673699694350,0.95782723,20888.0,20887.0,0.799931]
[1673699694842,0.95782723,20888.0,20887.0,1.578697]
[1673699695078,0.11204421,20888.0,20887.0,2.05589869]
[1673699695384,0.15218503,20895.0,20890.0,0.202938]
[1673699695633,0.13794164,20894.0,20891.0,0.49061749]
[1673699695890,0.13794164,20894.0,20892.0,0.321165]
[1673699696131,0.13794164,20894.0,20889.0,1.01884143]
[1673699696132,0.01187,20893.0,20889.0,1.01884143]
[1673699696373,0.19072595,20892.0,20889.0,1.01884143]
[1673699696622,0.957394,20890.0,20889.0,1.01884143]
[1673699696872,0.490567,20890.0,20889.0,1.01884143]
[1673699697123,0.63090307,20890.0,20889.0,1.01884143]
[1673699698089,0.478697,20890.0,20889.0,1.01884143]
[1673699698340,0.64100987,20890.0,20889.0,1.01884143]
[1673699698583,1.31833063,20890.0,20889.0,1.01884143]
[1673699698824,0.96776869,20890.0,20889.0,0.17305841]
[1673699700121,0.96776869,20890.0,20889.0,0.3425839]
[1673699700122,0.01187,20890.0,20889.0,0.3425839]
[1673699700389,0.18526275,20891.0,20889.0,0.43952008]
[1673699700876,0.18526275,20891.0,20889.0,0.17305841]
[1673699701117,0.62285842,20892.0,20889.0,0.46951028]
[1673699701355,0.62285842,20892.0,20889.0,0.17305841]
[1673699701356,0.25992945,20890.0,20889.0,0.17305841]
[1673699701851,0.552618,20890.0,20889.0,0.17305841]
[1673699702332,0.652618,20890.0,20889.0,0.17305841]
[1673699702821,0.81634064,20890.0,20889.0,0.17305841]
[1673699703066,0.71559064,20890.0,20889.0,0.17305841]
[1673699703572,0.6293762,20892.0,20889.0,0.48261316]
[1673699703830,0.6293762,20892.0,20889.0,0.65213865]
[1673699704072,0.6293762,20892.0,20889.0,0.17305841]
[1673699704073,0.64414898,20891.0,20889.0,0.17305841]
[1673699704559,0.19322773,20890.0,20889.0,0.17305841]
[1673699704809,0.18135773,20890.0,20889.0,0.17305841]
[1673699705050,0.65867741,20895.0,20889.0,0.17305841]
[1673699705303,0.65867741,20895.0,20890.0,0.16952549]
[1673699705304,0.478598,20895.0,20890.0,0.16952549]
[1673699705549,0.14865551,20897.0,20892.0,0.1]
[1673699705794,0.97505882,20902.0,20893.0,0.49069049]
[1673699705795,0.49772553,20902.0,20893.0,0.49069049]
[1673699706040,0.01928353,20902.0,20895.0,0.478581]
[1673699706277,0.01928353,20902.0,20896.0,0.79063849]
[1673699706533,0.01928353,20902.0,20898.0,0.1]
[1673699706770,0.01928353,20902.0,20899.0,1.44756249]
[1673699707024,0.01928353,20902.0,20900.0,0.37224949]
[1673699707264,0.01928353,20902.0,20901.0,0.32103]
[1673699707510,0.01928353,20902.0,20901.0,0.42103]
[1673699708020,0.02261905,20912.0,20903.0,0.202693]
[1673699708260,0.02261905,20912.0,20905.0,0.320963]
[1673699708516,0.02261905,20912.0,20907.0,0.1]
[1673699708785,0.02261905,20912.0,20908.0,0.96764118]
[1673699709057,0.02261905,20912.0,20908.0,0.202653]
[1673699709291,0.02261905,20912.0,20909.0,0.578258]
[1673699709534,0.02261905,20912.0,20910.0,0.202632]
[1673699709780,0.02261905,20912.0,20909.0,0.578258]
[1673699710028,0.213345,20912.0,20910.0,0.20263]
[1673699710270,0.213345,20912.0,20904.0,0.57836]
[1673699710271,0.1881973,20912.0,20904.0,0.57836]
[1673699710514,0.1881973,20912.0,20907.0,0.478293]
[1673699710515,0.19072595,20911.0,20907.0,0.478293]
[1673699710770,0.02261905,20912.0,20908.0,0.67985269]
[1673699711029,0.60996816,20923.0,20907.0,0.478293]
[1673699711030,0.0001,20920.0,20909.0,0.47720169]
[1673699711279,0.0001,20920.0,20911.0,0.202621]
[1673699711515,0.0001,20920.0,20914.0,1.434417]
[1673699711516,0.19082595,20920.0,20914.0,1.434417]
[1673699711764,0.19060754,20920.0,20915.0,0.202567]
[1673699712004,0.19242313,20919.0,20914.0,0.478139]
[1673699712252,0.19242313,20919.0,20915.0,0.202565]
[1673699712253,0.0215356,20919.0,20915.0,0.202565]
[1673699712488,0.0215356,20919.0,20917.0,0.1]
[1673699712741,0.0001,20920.0,20918.0,0.202534]
[1673699713066,0.02174219,20926.0,20919.0,0.4]
[1673699713290,0.02174219,20926.0,20921.0,0.477987]
[1673699713527,0.02174219,20926.0,20922.0,0.4]
[1673699713777,0.02174219,20926.0,20923.0,0.202467]
[1673699714032,0.02174219,20926.0,20920.0,0.477997]
[1673699714273,0.02174219,20926.0,20922.0,0.26997141]
[1673699714274,0.35232626,20925.0,20922.0,0.26997141]
[1673699714509,2.71433724,20923.0,20917.0,0.478073]
[1673699714754,2.71433724,20923.0,20917.0,0.25725039]
[1673699714755,0.20251595,20922.0,20917.0,0.25725039]
[1673699714998,0.19072595,20921.0,20917.0,0.25725039]
[1673699715261,0.19072595,20920.0,20917.0,0.25725039]
[1673699715562,0.19072595,20920.0,20919.0,0.25605927]
[1673699715802,2.39332024,20923.0,20916.0,0.478091]
[1673699716053,2.39332024,20923.0,20919.0,0.478018]
[1673699716298,2.39332024,20923.0,20920.0,0.47720169]
[1673699716542,2.58404619,20923.0,20919.0,0.478018]
[1673699716798,2.58404619,20923.0,20919.0,0.30814385]
[1673699716799,0.33580918,20922.0,20919.0,0.30814385]
[1673699717035,0.33580918,20922.0,20918.0,0.478054]
[1673699717036,0.19072595,20922.0,20915.0,0.75043463]
[1673699717288,0.19072595,20921.0,20912.0,0.478171]
[1673699717548,0.956114,20918.0,20911.0,0.28018408]
[1673699717797,0.20251595,20917.0,20914.0,0.32898113]
[1673699718049,0.20251595,20917.0,20906.0,0.578313]
[1673699718050,0.19072595,20919.0,20918.0,0.27977596]
[1673699718304,0.477998,20921.0,20917.0,0.32091767]
[1673699718553,0.477998,20921.0,20913.0,0.1]
[1673699718797,0.37986726,20920.0,20914.0,0.478139]
[1673699719308,0.37986726,20920.0,20914.0,0.7152496]
[1673699719545,0.19072595,20919.0,20914.0,0.26566879]
[1673699720286,0.19072595,20919.0,20914.0,0.478136]
[1673699720544,0.19072595,20919.0,20914.0,0.73237375]
[1673699720776,0.66878995,20918.0,20908.0,0.1]
[1673699721027,0.03284,20916.0,20906.0,0.2917224]
[1673699721300,0.03284,20916.0,20904.0,0.578371]
[1673699721301,0.478171,20913.0,20904.0,0.478371]
[1673699721557,0.478171,20913.0,20905.0,0.32626005]
[1673699721558,0.321017,20911.0,20905.0,0.32626005]
[1673699721803,0.19072595,20911.0,20906.0,0.47720169]
[1673699722096,0.04869331,20920.0,20905.0,0.478346]
[1673699722097,0.18935802,20915.0,20911.0,0.21102169]
[1673699722598,0.20607996,20915.0,20911.0,0.19932169]
[1673699722863,0.321017,20914.0,20911.0,0.19932169]
[1673699723107,1.63344716,20913.0,20911.0,0.19932169]
[1673699723350,0.421017,20912.0,20911.0,0.19932169]
[1673699723854,0.1,20911.0,20903.0,0.0228543]
[1673699724103,0.1155,20909.0,20903.0,0.0228543]
[1673699724338,1.43496,20907.0,20903.0,0.0228543]
[1673699724582,0.50816116,20906.0,20903.0,0.0228543]
[1673699724832,1.53496,20907.0,20903.0,0.0228543]
[1673699724833,1.15291609,20905.0,20903.0,0.0228543]
[1673699725073,0.321017,20904.0,20903.0,0.0228543]
[1673699725321,0.321017,20904.0,20903.0,0.27772684]
[1673699725565,0.321017,20904.0,20903.0,0.0228543]
[1673699726355,0.421017,20904.0,20903.0,0.0228543]
[1673699726593,0.421017,20904.0,20887.0,0.8235]
[1673699726594,0.478452,20901.0,20887.0,0.8235]
[1673699726839,0.478452,20901.0,20892.0,0.27017049]
[1673699726840,0.99115709,20900.0,20892.0,0.27017049]
[1673699727087,0.28417312,20899.0,20894.0,0.33469222]
[1673699727338,0.50519012,20898.0,20894.0,0.33469222]
[1673699727579,0.18417312,20897.0,20892.0,0.29935999]
[1673699727834,0.18417312,20896.0,20894.0,0.28522056]
[1673699728090,0.478534,20898.0,20896.0,0.23594907]
[1673699728347,0.578507,20899.0,20896.0,0.23594907]
[1673699728600,0.321017,20898.0,20896.0,0.23594907]
[1673699728858,0.321017,20898.0,20889.0,0.17305841]
[1673699728859,1.031174,20897.0,20889.0,0.17305841]
[1673699729116,0.578608,20894.0,20889.0,0.17305841]
[1673699729356,0.19596312,20893.0,20889.0,0.17305841]
[1673699729644,0.1733707,20897.0,20890.0,0.202879]
[1673699729888,0.14883187,20895.0,20891.0,0.19072595]
[1673699730133,0.14883187,20895.0,20892.0,0.20286]
[1673699730391,0.14883187,20895.0,20890.0,0.29327633]
[1673699730689,0.478481,20900.0,20889.0,0.17305841]
[1673699730938,0.33492822,20899.0,20890.0,1.19680426]
[1673699731188,0.18417312,20898.0,20891.0,0.19072595]
[1673699731421,0.38046952,20897.0,20892.0,0.76935695]
[1673699731682,0.38046952,20897.0,20893.0,0.23914308]
[1673699731924,0.1678737,20896.0,20893.0,0.23914308]
[1673699732177,0.50519012,20895.0,20889.0,0.17305841]
[1673699732422,1.15320612,20894.0,20889.0,0.17305841]
[1673699732676,0.1,20894.0,20893.0,0.29371116]
[1673699732926,0.22665263,20896.0,20893.0,0.29371116]
[1673699733178,0.22665263,20896.0,20889.0,0.84249636]
[1673699733422,0.22665263,20896.0,20891.0,0.31463313]
[1673699733423,0.18417312,20895.0,20891.0,0.31463313]
[1673699733909,0.66276212,20895.0,20890.0,0.25976871]
[1673699734174,0.50519012,20894.0,20889.0,0.17305841]
[1673699734418,0.76281212,20893.0,20889.0,0.17305841]
[1673699734671,0.14055587,20892.0,20889.0,0.17305841]
[1673699734907,0.32472899,20892.0,20889.0,0.17305841]
[1673699735155,0.04130303,20896.0,20891.0,0.202872]
[1673699735407,0.19475275,20894.0,20892.0,0.19072595]
[1673699735648,0.19475275,20894.0,20890.0,0.43497636]
[1673699735889,0.18873043,20892.0,20890.0,0.24425041]
[1673699736130,0.18873043,20892.0,20889.0,0.17305841]
[1673699736131,0.37290355,20892.0,20889.0,0.17305841]
[1673699736375,0.66283112,20892.0,20889.0,0.17305841]
[1673699736609,0.478611,20894.0,20890.0,0.24406643]
[1673699736886,0.24809084,20894.0,20890.0,0.43479238]
[1673699737134,0.14237324,20892.0,20890.0,0.24406643]
[1673699737870,0.17137124,20893.0,20890.0,0.24406643]
[1673699738142,0.7731936,20893.0,20889.0,0.17305841]
[1673699738388,0.90547638,20893.0,20889.0,0.17305841]
[1673699738629,0.76280512,20893.0,20889.0,0.17305841]
[1673699738873,0.66280512,20893.0,20889.0,0.17305841]
[1673699739133,0.65391716,20893.0,20889.0,0.67496594]
[1673699739376,0.478609,20894.0,20891.0,0.330123]
[1673699739611,0.04130303,20896.0,20892.0,0.19072595]
[1673699739895,0.04130303,20896.0,20895.0,1.43810987]
[1673699740132,0.04130303,20896.0,20895.0,1.62883582]
[1673699740374,0.04130303,20896.0,20895.0,1.43810987]
[1673699740643,0.04130303,20896.0,20895.0,0.96995627]
[1673699740888,0.41430463,20896.0,20895.0,0.96995627]
[1673699741129,0.36232003,20896.0,20895.0,0.96995627]
[1673699741629,0.515544,20896.0,20895.0,0.96995627]
[1673699741904,0.05309303,20896.0,20895.0,0.96995627]
[1673699742140,0.05309303,20896.0,20895.0,1.26548754]
[1673699742141,0.04130303,20896.0,20895.0,1.26548754]
[1673699742703,0.04130303,20896.0,20895.0,1.17277527]
[1673699742970,0.04130303,20896.0,20895.0,1.43764604]
[1673699743458,0.16816578,20899.0,20895.0,1.23482704]
[1673699743706,0.16816578,20899.0,20895.0,1.42555299]
[1673699743958,0.15503836,20898.0,20895.0,1.42555299]
[1673699744199,0.15503836,20898.0,20895.0,1.23482704]
[1673699744433,0.03586429,20900.0,20895.0,1.63926522]
[1673699744690,0.03586429,20900.0,20896.0,0.19072595]
[1673699745193,0.03586429,20900.0,20896.0,1.06928295]
[1673699745426,0.03586429,20900.0,20897.0,0.66925895]
[1673699745704,0.22003741,20900.0,20898.0,0.202785]
[1673699745952,0.22003741,20900.0,20895.0,1.44851627]
[1673699745953,0.16016316,20899.0,20895.0,1.23201731]
[1673699746224,0.34433628,20899.0,20896.0,0.26727006]
[1673699746450,0.03586429,20900.0,20897.0,0.26393452]
[1673699746707,0.02079809,20903.0,20898.0,0.19072595]
[1673699746955,0.02079809,20903.0,20899.0,0.39349695]
[1673699747200,0.02079809,20903.0,20901.0,1.435338]
[1673699747468,0.02079809,20903.0,20902.0,0.202734]
[1673699747726,0.02079809,20903.0,20902.0,0.69345995]
[1673699747969,1.207519,20904.0,20903.0,0.1]
[1673699748212,8e-08,20904.0,20903.0,2.75453995]
[1673699748489,0.17833904,20913.0,20904.0,0.1]
[1673699748719,0.17833904,20913.0,20907.0,0.202666]
[1673699748720,0.02121978,20910.0,20907.0,0.202666]
[1673699748972,0.02121978,20910.0,20908.0,0.49072595]
[1673699749212,0.02121978,20910.0,20909.0,1.44989695]
[1673699749456,0.02121978,20910.0,20909.0,0.202647]
[1673699749457,0.08352978,20910.0,20909.0,0.202647]
[1673699749710,0.08352978,20910.0,20908.0,0.478266]
[1673699749711,0.02121978,20910.0,20908.0,0.956541]
[1673699749957,0.02121978,20910.0,20909.0,0.77945145]
[1673699750198,0.02121978,20910.0,20909.0,0.87945145]
[1673699750444,0.02121978,20910.0,20909.0,0.97569831]
[1673699750685,0.02121978,20910.0,20909.0,0.29479331]
[1673699751184,0.02121978,20910.0,20909.0,0.202643]
[1673699751423,0.17182193,20910.0,20907.0,0.7922646]
[1673699751664,0.02121978,20910.0,20909.0,0.202643]
[1673699751918,0.02121978,20910.0,20909.0,0.58982378]
[1673699752418,9.78e-06,20910.0,20909.0,1.75568366]
[1673699752657,0.35,20922.0,20909.0,1.75568366]
[1673699752658,1.50563986,20921.0,20910.0,0.01611093]
[1673699752900,0.16434779,20920.0,20912.0,0.956384]
[1673699753208,0.16434779,20920.0,20914.0,0.478142]
[1673699753461,0.02079809,20917.0,20915.0,0.19072595]
[1673699753667,0.02079809,20917.0,20916.0,0.202557]
[1673699753938,0.02079809,20917.0,20913.0,0.478162]
[1673699753939,0.08310809,20917.0,20913.0,0.478162]
[1673699754197,0.08310809,20917.0,20914.0,0.478134]
[1673699754198,0.26728121,20917.0,20914.0,0.478134]
[1673699754445,0.02079809,20917.0,20915.0,0.202566]
[1673699754703,0.02079809,20917.0,20916.0,1.256204]
[1673699754938,0.02079809,20917.0,20916.0,1.158761]
[1673699755199,0.20497121,20917.0,20910.0,0.49434793]
[1673699755459,0.20497121,20917.0,20910.0,0.01611093]
[1673699755460,0.98239181,20916.0,20910.0,0.01611093]
[1673699755707,0.01179,20914.0,20910.0,0.01611093]
[1673699755947,0.956434,20911.0,20904.0,0.2643854]
[1673699756203,0.490067,20909.0,20904.0,0.2643854]
[1673699756432,1.10764152,20908.0,20896.0,0.478545]
[1673699756676,1.10764152,20908.0,20904.0,0.25321887]
[1673699756677,1.17161056,20907.0,20904.0,0.25321887]
[1673699756924,0.1,20905.0,20904.0,0.25321887]
[1673699757170,0.76254812,20905.0,20902.0,0.24008401]
[1673699757447,0.76254812,20905.0,20896.0,0.19072595]
[1673699757448,0.18417312,20904.0,20896.0,0.19072595]
[1673699757694,1.46199712,20903.0,20895.0,3.57245627]
[1673699757980,0.1,20901.0,20897.0,0.24270935]
[1673699758218,0.18417312,20901.0,20895.0,1.63924922]
[1673699758458,0.18417312,20900.0,20896.0,0.202802]
[1673699758698,0.18417312,20900.0,20895.0,1.44852327]
[1673699758938,0.18417312,20899.0,20896.0,0.202803]
[1673699759187,1.07070244,20905.0,20895.0,1.44852327]
[1673699759188,0.095,20905.0,20895.0,1.44852327]
[1673699759432,0.18417312,20904.0,20897.0,0.19072595]
[1673699759695,0.18417312,20904.0,20899.0,0.478489]
[1673699759938,0.478273,20909.0,20900.0,0.49072595]
[1673699759939,0.24521374,20908.0,20900.0,0.49072595]
[1673699760196,2.5951723,20915.0,20899.0,0.578489]
[1673699760197,0.33004647,20916.0,20902.0,1.435221]
[1673699760440,0.18417312,20916.0,20903.0,0.96792764]
[1673699760720,0.38034759,20915.0,20907.0,0.478304]
[1673699760962,0.02079809,20917.0,20908.0,0.49338095]
[1673699761229,0.19681067,20917.0,20909.0,0.96897295]
[1673699761469,0.15797805,20915.0,20910.0,0.19072595]
[1673699761723,0.50519012,20915.0,20910.0,0.19072595]
[1673699761963,0.01179,20914.0,20911.0,0.19072595]
[1673699762208,0.02079809,20917.0,20911.0,0.19072595]
[1673699762462,0.1949835,20916.0,20912.0,0.19072595]
[1673699762699,0.02079809,20917.0,20912.0,0.19072595]
[1673699762947,0.02079809,20917.0,20913.0,0.24949566]
[1673699762948,0.39775905,20917.0,20913.0,0.24949566]
[1673699763188,0.011789,20915.0,20908.0,0.28978336]
[1673699763451,0.478114,20916.0,20908.0,0.28978336]
[1673699763689,0.321017,20915.0,20904.0,0.478355]
[1673699763945,0.321017,20915.0,20903.0,0.31526799]
[1673699763946,0.478281,20909.0,20903.0,0.31526799]
[1673699764189,0.50519012,20908.0,20903.0,0.31526799]
[1673699764433,0.18417312,20907.0,20905.0,0.28225871]
[1673699764679,0.18417312,20906.0,20901.0,0.27885838]
[1673699764922,0.18417312,20906.0,20896.0,0.478547]
[1673699764923,1.08355212,20905.0,20896.0,0.478547]
[1673699765163,0.19596312,20904.0,20902.0,0.33026583]
[1673699765426,0.321017,20903.0,20902.0,0.33026583]
[1673699765696,0.321017,20903.0,20895.0,1.44853527]
[1673699765697,0.478455,20901.0,20895.0,0.96995627]
[1673699765944,0.60519012,20900.0,20895.0,0.96995627]
[1673699766179,0.18417312,20899.0,20895.0,0.96995627]
[1673699766422,0.18417312,20898.0,20895.0,0.96995627]
[1673699767396,0.578475,20900.0,20896.0,0.23571259]
[1673699767911,0.57829259,20900.0,20896.0,0.23571259]
[1673699768339,0.321017,20899.0,20895.0,0.91995627]
[1673699768341,0.35600056,20899.0,20896.0,0.28522845]
[1673699768602,0.490304,20898.0,20895.0,0.91995627]
[1673699768848,0.490304,20898.0,20896.0,0.24944733]
[1673699768849,0.478514,20898.0,20896.0,0.24944733]
[1673699769362,0.321017,20897.0,20896.0,0.24944733]
[1673699769612,0.03498356,20899.0,20898.0,0.68086341]
[1673699769874,0.03498356,20899.0,20898.0,0.88364841]
[1673699771193,0.478314,20907.0,20899.0,0.1259058]
[1673699771194,0.18714277,20907.0,20899.0,0.1259058]
[1673699771440,0.19236327,20908.0,20900.0,0.19072595]
[1673699771712,0.18801052,20907.0,20903.0,0.4784]
[1673699771992,0.18801052,20907.0,20901.0,0.04869331]
[1673699771993,0.66248612,20907.0,20901.0,0.04869331]
[1673699772210,0.66248612,20907.0,20899.0,0.24390403]
[1673699772211,0.16907082,20901.0,20899.0,0.24390403]
[1673699772469,0.16907082,20901.0,20899.0,0.05317808]
[1673699772470,0.35324394,20901.0,20899.0,0.05317808]
[1673699772982,0.421017,20900.0,20899.0,0.05317808]
[1673699773246,0.899485,20900.0,20899.0,0.05317808]
[1673699773732,1.377953,20900.0,20899.0,7.808e-05]
[1673699773979,0.20814959,20899.0,20898.0,0.68086341]
[1673699774222,0.30137755,20899.0,20898.0,0.68086341]
[1673699774468,0.28958755,20899.0,20898.0,0.68086341]
[1673699774717,0.383327,20899.0,20898.0,0.68086341]
[1673699774960,0.57333632,20899.0,20898.0,0.68086341]
[1673699775214,0.19000932,20899.0,20898.0,0.68086341]
[1673699775751,0.51867811,20899.0,20898.0,0.68086341]
[1673699775983,0.321017,20899.0,20898.0,0.68086341]
[1673699776227,0.67439318,20900.0,20898.0,0.68086341]
[1673699776475,0.956948,20900.0,20898.0,0.68086341]
[1673699776726,0.421017,20899.0,20898.0,0.68086341]
[1673699777251,1.07215521,20899.0,20898.0,0.68086341]
[1673699777531,0.899508,20899.0,20898.0,0.68086341]
[1673699778032,1.37670969,20899.0,20895.0,0.91995627]
[1673699778282,0.11179,20898.0,20895.0,0.91995627]
[1673699778523,1.756628,20897.0,20895.0,0.91995627]
[1673699778773,0.1741,20896.0,20895.0,0.91995627]
[1673699779020,0.55266,20896.0,20895.0,0.91995627]
[1673699779269,0.76295929,20896.0,20895.0,0.91995627]
[1673699779517,0.01179,20896.0,20895.0,0.91995627]
[1673699779772,0.478537,20897.0,20895.0,1.15779911]
[1673699780021,0.65698889,20897.0,20895.0,1.15779911]
[1673699780266,0.17845189,20897.0,20895.0,1.15779911]
[1673699780515,0.478518,20898.0,20895.0,0.91995627]
[1673699780770,0.20447582,20896.0,20895.0,0.91995627]
[1673699781031,0.68303582,20896.0,20895.0,0.91995627]
[1673699781287,1.00405282,20896.0,20895.0,0.91995627]
[1673699781548,0.799577,20896.0,20895.0,0.91995627]
[1673699781786,1.0145396,20896.0,20895.0,0.91995627]
[1673699782322,0.799577,20896.0,20895.0,0.91995627]
[1673699782574,0.98085275,20896.0,20895.0,0.91995627]
[1673699782824,0.478433,20902.0,20895.0,1.58926522]
[1673699783098,0.20567309,20899.0,20896.0,0.29072595]
[1673699783388,0.478453,20901.0,20896.0,0.19072595]
[1673699783609,0.21317259,20899.0,20897.0,0.19072595]
[1673699783847,0.19319813,20898.0,20895.0,1.16734353]
[1673699784080,0.95560069,20904.0,20895.0,1.16734353]
[1673699784081,1.53861584,20908.0,20895.0,1.58925722]
[1673699784330,0.22600813,20904.0,20896.0,0.49072595]
[1673699784563,0.41018125,20904.0,20899.0,0.1]
[1673699784847,0.41018125,20904.0,20900.0,0.39342695]
[1673699784848,0.22600813,20904.0,20900.0,0.39342695]
[1673699785083,0.02067599,20906.0,20901.0,0.19072595]
[1673699785339,0.24799937,20906.0,20902.0,0.19072595]
[1673699785569,0.24799937,20906.0,20903.0,0.51177895]
[1673699785809,0.24799937,20906.0,20904.0,0.39328395]
[1673699786050,0.24799937,20906.0,20905.0,0.321053]
[1673699786304,0.21680669,20903.0,20900.0,0.478458]
[1673699786532,0.1861127,20901.0,20899.0,0.47848]
[1673699786786,0.18417312,20901.0,20899.0,0.32979821]
[1673699787019,0.18417312,20901.0,20900.0,0.321053]
[1673699787288,0.22843592,20901.0,20900.0,0.321053]
[1673699787524,0.18417312,20901.0,20895.0,1.23506724]
[1673699787785,0.66264312,20900.0,20896.0,0.26391885]
[1673699788018,0.18417312,20899.0,20896.0,0.26391885]
[1673699788523,0.18417312,20899.0,20895.0,0.91995627]
[1673699788766,0.478493,20899.0,20895.0,0.91995627]
[1673699789024,0.08417312,20898.0,20895.0,0.91995627]
[1673699789272,0.011784,20897.0,20895.0,0.91995627]
[1673699789508,0.478537,20897.0,20895.0,0.91995627]
[1673699789744,0.18335584,20897.0,20895.0,0.91995627]
[1673699790218,0.47843,20902.0,20895.0,1.11068222]
[1673699790476,0.20543294,20900.0,20896.0,0.51058147]
[1673699790719,0.56259712,20902.0,20896.0,0.31985552]
[1673699790720,0.19534051,20899.0,20896.0,0.31985552]
[1673699791442,0.478457,20901.0,20895.0,0.91995627]
[1673699791443,0.19140439,20898.0,20895.0,0.91995627]